fUST/lending_fUST_20250723
["ID","MTS","AMOUNT","RATE_DAILY","PERIOD"]
[374356011,1753278668192,-2453.51,0.00024657,2]
[374356013,1753278668202,-2633.59,0.00024657,2]
[374356015,1753278668212,-536.74,0.00024657,2]
[374356017,1753278668226,-460.0,0.00024657,2]
[374356019,1753278668236,-2867.23,0.00024657,2]
[374356021,1753278668246,-828.75,0.00024657,2]
[374356023,1753278668257,-1093.38,0.00024657,2]
[374356026,1753278668267,-1266.0,0.00024657,2]
[374356027,1753278668277,-561.41,0.00024657,2]
[374356030,1753278668288,-167.4724735,0.00024658,2]
[374356032,1753278668298,-151.0,0.00024658,7]
[374356034,1753278668307,-151.0,0.00024658,7]
[374356036,1753278668317,-151.0,0.00024658,7]
[374356038,1753278668326,-151.0,0.00024658,7]
[374356039,1753278668336,-235.1567,0.00024658,7]
[374356042,1753278668346,-380.0,0.00024658,2]
[374356043,1753278668355,-2200.0,0.00024658,2]
[374356046,1753278668365,-500.0,0.00024658,2]
[374356048,1753278668375,-245.0,0.00024658,2]
[374356050,1753278668385,-214.32440616,0.00024658,2]
[374356052,1753278668394,-151.0,0.00024658,2]
[374356054,1753278668404,-1232.0,0.00024658,2]
[374356056,1753278668413,-784.0,0.00024658,2]
[374356058,1753278668423,-784.0,0.00024658,2]
[374356060,1753278668435,-186.11669187,0.00024658,2]
[374356062,1753278668446,-151.0,0.00024658,2]
[374356064,1753278668455,-683.0,0.00024658,2]
[374356066,1753278668468,-1298.05,0.00024665,5]
[374356068,1753278668477,-200.91900509,0.00024673,2]
[374356070,1753278668487,-500.0,0.00024673,2]
[374356072,1753278668496,-1315.0,0.00024679,10]
[374356074,1753278668506,-194.56877943,0.00024683,2]
[374356076,1753278668515,-500.0,0.00024683,2]
[374356078,1753278668525,-200.0,0.00024699,2]
[374356080,1753278668534,-49820.93647318,0.000247,2]
[374356082,1753278668546,-10234.10352682,0.000247,2]
[374356084,1753278668556,-250.0,0.000247,10]
[374356086,1753278668566,-700.0,0.00024708,2]
[374356088,1753278668579,-500.0,0.00024741,2]
[374356090,1753278668589,-1401.0,0.00024743,2]
[374356092,1753278668599,-354.0965,0.00024757,10]
[374356094,1753278668608,-322.621255,0.00024757,10]
[374356096,1753278668618,-1298.05,0.00024765,5]
[374356098,1753278668628,-3449.9,0.00024766,7]
[374356101,1753278668638,-500.0,0.00024766,2]
[374356103,1753278668647,-150.11983124,0.00024773,2]
[374356105,1753278668657,-3360.6439601,0.00024774,2]
[374356148,1753278669083,-500.0,0.00019167,2]
[374356150,1753278669092,-489.999997,0.00019167,2]
[374356152,1753278669104,-10.000003,0.00019167,2]
[374356154,1753278669115,-500.0,0.00019167,2]
[374356156,1753278669125,-500.0,0.00019167,2]
[374356158,1753278669136,-500.0,0.00019167,2]
[374356160,1753278669146,-500.0,0.00019167,2]
[374356162,1753278669156,-500.0,0.00019167,2]
[374356164,1753278669167,-500.0,0.00019167,2]
[374356166,1753278669178,-500.0,0.00019167,2]
[374356168,1753278669188,-500.0,0.00019167,2]
[374356170,1753278669198,-419.95975876,0.00019167,2]
[374356172,1753278669208,-500.0,0.00019167,2]
[374356174,1753278669224,-500.0,0.00019167,2]
[374356176,1753278669234,-500.0,0.00019167,2]
[374356178,1753278669244,-500.0,0.00019167,2]
[374356180,1753278669254,-500.0,0.00019167,2]
[374356182,1753278669264,-343.2775097,0.00019178,2]
[374356184,1753278669277,-116.7224903,0.00019178,2]
[374356186,1753278669287,-460.0,0.00019178,2]
[374356188,1753278669297,-460.0,0.00019178,2]
[374356190,1753278669306,-460.0,0.00019452,2]
[374356192,1753278669315,-344.37,0.00019452,2]
[374356194,1753278669325,-460.0,0.00019726,2]
[374356196,1753278669334,-985.79,0.0002,2]
[374356198,1753278669344,-460.0,0.0002,2]
[374356200,1753278669353,-985.79,0.00020273,2]
[374356202,1753278669362,-460.0,0.00020273,2]
[374356204,1753278669372,-985.79,0.00020547,2]
[374356206,1753278669381,-460.0,0.00020547,2]
[374356208,1753278669391,-766.13493671,0.00020821,2]
[374356210,1753278669402,-219.65506329,0.00020821,2]
[374356212,1753278669412,-460.0,0.00020821,2]
[374356214,1753278669421,-985.79,0.00021095,2]
[374356216,1753278669429,-460.0,0.00021095,2]
[374356217,1753278669439,-985.79,0.00021369,2]
[374356219,1753278669448,-985.79,0.00021643,2]
[374356221,1753278669458,-985.79,0.00021917,2]
[374356223,1753278669471,-985.79,0.00022191,2]
[374356225,1753278669481,-1000.0,0.000229,2]
[374356227,1753278669490,-577.078505,0.00022929,7]
[374356229,1753278669500,-1000.0,0.000234,2]
[374356231,1753278669509,-577.078505,0.00023561,7]
[374356233,1753278669519,-407.0,0.00023662,2]
[374356235,1753278669528,-577.078505,0.0002425,7]
[374356237,1753278669538,-577.078505,0.000244,7]
[374356239,1753278669547,-12788.07491671,0.00024774,2]
[374356262,1753278669772,-299.94621914,0.00024774,2]
[374356264,1753278669782,-200.0,0.0002478,12]
[374356266,1753278669792,-500.0,0.0002478,2]
[374356268,1753278669802,-200.0,0.00024799,2]
[374356270,1753278669815,-151.0,0.000248,7]
[374356272,1753278669824,-38.76120527,0.000248,7]
[374361031,1753279201404,433.735963,0.00013699,2]
[374361032,1753279549122,-1988.91900817,0.00017961,2]
[374361033,1753279575569,1135.588075,0.00025999,120]
[374361036,1753279633081,-164.2374301,0.00017781,6]
[374361037,1753279643082,-1995.65395148,0.00017781,6]
[374361038,1753279650177,-152.19514548,0.00017781,6]
[374361043,1753279748115,-4789.69890037,0.00017326,2]
[374361044,1753279748142,-685.92074063,0.00017326,2]
[374361045,1753279753110,-300.0,0.00017698,2]
[374361046,1753279753136,-460.0,0.00017699,2]
[374361047,1753279753160,-500.0,0.00017699,2]
[374361048,1753279753184,-500.0,0.00017699,2]
[374361049,1753279753209,-500.0,0.00017699,2]
[374361050,1753279753232,-500.0,0.00017699,2]
[374361051,1753279753256,-500.0,0.00017699,2]
[374361052,1753279753289,-500.0,0.00017699,2]
[374361053,1753279753316,-500.0,0.00017699,2]
[374361054,1753279753339,-500.0,0.00017699,2]
[374361055,1753279753364,-500.0,0.00017699,2]
[374361056,1753279753386,-500.0,0.00017699,2]
[374361057,1753279753410,-500.0,0.00017699,2]
[374361058,1753279753433,-500.0,0.00017699,2]
[374361059,1753279753456,-500.0,0.00017699,2]
[374361060,1753279753479,-500.0,0.00017699,2]
[374361061,1753279753504,-66.07991703,0.00017699,2]
[374361062,1753279754081,-433.92008297,0.00017699,2]
[374361063,1753279754105,-467.67991703,0.00017699,2]
[374361064,1753279757104,-32.32008297,0.00017699,2]
[374361065,1753279757129,-152.22629701,0.00017699,2]
[374361066,1753279761120,-347.77370299,0.00017699,2]
[374361067,1753279761144,-500.0,0.00017699,2]
[374361068,1753279761166,-500.0,0.00017699,2]
[374361069,1753279761188,-500.0,0.00017699,2]
[374361070,1753279761211,-500.0,0.00017699,2]
[374361071,1753279761233,-500.0,0.00017699,2]
[374361072,1753279761256,-500.0,0.00017699,2]
[374361073,1753279761278,-500.0,0.00017699,2]
[374361074,1753279761301,-500.0,0.00017699,2]
[374361075,1753279761326,-500.0,0.00017699,2]
[374361076,1753279761349,-500.0,0.00017699,2]
[374361077,1753279761375,-500.0,0.00017699,2]
[374361078,1753279761400,-500.0,0.00017699,2]
[374361079,1753279761424,-500.0,0.00017699,2]
[374361080,1753279761447,-542.52531179,0.00017699,2]
[374361081,1753279761469,-500.0,0.00017699,2]
[374361082,1753279761491,-500.0,0.00017699,2]
[374361083,1753279761514,-500.0,0.00017699,2]
[374361084,1753279761536,-500.0,0.00017699,2]
[374361085,1753279761559,-500.0,0.00017699,2]
[374361086,1753279761581,-500.0,0.00017699,2]
[374361087,1753279761603,-500.0,0.00017699,2]
[374361088,1753279761627,-500.0,0.00017699,2]
[374361089,1753279761648,-500.0,0.00017699,2]
[374361090,1753279761830,-500.0,0.00017699,2]
[374361091,1753279761855,-500.0,0.00017699,2]
[374361092,1753279761880,-500.0,0.00017699,2]
[374361093,1753279761903,-500.0,0.00017699,2]
[374361094,1753279761925,-500.0,0.00017699,2]
[374361095,1753279761948,-500.0,0.00017699,2]
[374361096,1753279761974,-500.0,0.00017699,2]
[374361097,1753279761996,-500.0,0.00017699,2]
[374361098,1753279762018,-500.0,0.00017699,2]
[374361099,1753279762040,-500.0,0.00017699,2]
[374361100,1753279762061,-300.0,0.00017699,2]
[374361101,1753279762080,-48289.0,0.000177,2]
[374361102,1753279762101,-1888.85546987,0.00017781,6]
[374361103,1753279762162,-799.05800307,0.00017781,6]
[374361104,1753279762183,-500.0,0.00018143,2]
[374361105,1753279762205,-500.0,0.00018143,2]
[374361106,1753279762226,-500.0,0.00018143,2]
[374361107,1753279762247,-288.0,0.00018143,2]
[374361108,1753279762269,-24900.0,0.00018144,2]
[374361109,1753279763446,160.0,0.00017958,2]
[374361160,1753279832084,-673.88,0.00018318,2]
[374361162,1753279832096,-1811.71640435,0.00018318,2]
[374361165,1753279832106,-858.87399478,0.00018503,2]
[374361167,1753279832116,-242.47043218,0.00018603,2]
[374361168,1753279832125,-46048.80729457,0.00018603,2]
[374361171,1753279832135,-500.0,0.00019064,2]
[374361172,1753279832144,-299.95528751,0.00019064,2]
[374361174,1753279832154,-500.0,0.00019064,2]
[374361177,1753279832163,-12494.97191201,0.0001907,2]
[374361179,1753279832173,-513.2,0.00019168,3]
[374361181,1753279832186,-297.58,0.00019168,3]
[374361183,1753279832195,-892.74,0.00019168,3]
[374361186,1753279832204,-500.0,0.00019173,2]
[374361187,1753279832214,-485.40378814,0.00019178,2]
[374361190,1753279832224,-460.0,0.00019178,2]
[374361194,1753279832234,-492.9,0.00019178,2]
[374361195,1753279832243,-460.0,0.00019178,2]
[374361197,1753279832253,-464.16727029,0.00019178,2]
[374361200,1753279832262,-460.0,0.00019178,2]
[374361201,1753279832272,-243.27922405,0.00019178,2]
[374361204,1753279832282,-460.0,0.00019178,2]
[374361206,1753279832292,-460.0,0.00019178,2]
[374361208,1753279832302,-460.0,0.00019178,2]
[374361210,1753279832311,-476.01549992,0.00019178,2]
[374361212,1753279832321,-460.0,0.00019178,2]
[374361214,1753279832331,-460.0,0.00019178,2]
[374361216,1753279832340,-460.0,0.00019178,2]
[374361218,1753279832350,-581.7554578,0.00019178,2]
[374361220,1753279832360,-460.0,0.00019178,2]
[374361222,1753279832370,-460.0,0.00019178,2]
[374361224,1753279832379,-460.0,0.00019178,2]
[374361226,1753279832391,-460.0,0.00019178,2]
[374361228,1753279832401,-460.0,0.00019178,2]
[374361230,1753279832414,-460.0,0.00019178,2]
[374361232,1753279832427,-460.0,0.00019178,2]
[374361234,1753279832438,-774.0,0.00019178,2]
[374361236,1753279832448,-460.0,0.00019178,2]
[374361238,1753279832459,-460.0,0.00019178,2]
[374361240,1753279832469,-460.0,0.00019178,2]
[374361242,1753279832479,-460.0,0.00019178,2]
[374361244,1753279832488,-460.0,0.00019178,2]
[374361246,1753279832498,-460.0,0.00019178,2]
[374361248,1753279832507,-460.0,0.00019178,2]
[374361250,1753279832517,-460.0,0.00019178,2]
[374361252,1753279832527,-460.0,0.00019178,2]
[374361254,1753279832536,-460.0,0.00019178,2]
[374361256,1753279832546,-460.0,0.00019178,2]
[374361258,1753279832556,-460.0,0.00019178,2]
[374361260,1753279832565,-460.0,0.00019178,2]
[374361262,1753279832575,-460.0,0.00019178,2]
[374361264,1753279832584,-463.89688741,0.00019178,2]
[374361265,1753279832593,-460.0,0.00019178,2]
[374361266,1753279832603,-460.0,0.00019178,2]
[374361267,1753279832612,-460.0,0.00019178,2]
[374361268,1753279832621,-168.97127519,0.00019178,2]
[374361269,1753279832634,-291.02872481,0.00019178,2]
[374361270,1753279832643,-460.0,0.00019178,2]
[374361271,1753279832654,-287.85927966,0.00019178,2]
[374361272,1753279832664,-460.0,0.00019178,2]
[374361273,1753279832674,-460.0,0.00019178,2]
[374361274,1753279832686,-460.0,0.00019178,2]
[374361275,1753279832695,-358.71358579,0.00019178,2]
[374361334,1753279839114,-500.0,0.00018602,2]
[374361336,1753279839123,-500.0,0.00018602,2]
[374361338,1753279839133,-500.0,0.00018602,2]
[374361340,1753279839142,-500.0,0.00018602,2]
[374361342,1753279839152,-234.25253118,0.00018602,2]
[374361344,1753279839161,-101.28641421,0.00019178,2]
[374361346,1753279839170,-460.0,0.00019178,2]
[374361348,1753279839181,-460.0,0.00019178,2]
[374361350,1753279839190,-460.0,0.00019178,2]
[374361352,1753279839199,-463.35827673,0.00019178,2]
[374361353,1753279839209,-460.0,0.00019178,2]
[374361355,1753279839218,-378.91397889,0.00019178,2]
[374361357,1753279839227,-460.0,0.00019178,2]
[374361359,1753279839237,-460.0,0.00019178,2]
[374361361,1753279839247,-460.0,0.00019178,2]
[374361363,1753279839256,-460.0,0.00019178,2]
[374361365,1753279839265,-265.4809125,0.00019178,2]
[374361368,1753279839278,-194.5190875,0.00019178,2]
[374361370,1753279839288,-460.0,0.00019178,2]
[374361372,1753279839297,-460.0,0.00019178,2]
[374361374,1753279839307,-460.0,0.00019178,2]
[374361376,1753279839316,-460.0,0.00019178,2]
[374361378,1753279839325,-460.0,0.00019178,2]
[374361380,1753279839334,-460.0,0.00019178,2]
[374361382,1753279839344,-349.6591925,0.00019178,2]
[374361384,1753279839356,-110.3408075,0.00019178,2]
[374361386,1753279839365,-460.0,0.00019178,2]
[374361388,1753279839375,-460.0,0.00019178,2]
[374361390,1753279839384,-460.0,0.00019178,2]
[374361392,1753279839394,-190.94679065,0.00019178,2]
[374361394,1753279839404,-460.0,0.00019178,2]
[374361396,1753279839414,-460.0,0.00019178,2]
[374361398,1753279839426,-460.0,0.00019178,2]
[374361401,1753279839440,-460.0,0.00019178,2]
[374361402,1753279839449,-460.0,0.00019178,2]
[374361404,1753279839458,-245.80004186,0.00019178,2]
[374361408,1753279839469,-214.19995814,0.00019178,2]
[374361411,1753279839478,-460.0,0.00019178,2]
[374361414,1753279839487,-460.0,0.00019178,2]
[374361416,1753279839497,-460.0,0.00019178,2]
[374361419,1753279839506,-460.0,0.00019178,2]
[374361423,1753279839516,-460.0,0.00019178,2]
[374361459,1753279839680,-460.25157487,0.00019178,2]
[374361464,1753279839690,-460.0,0.00019178,2]
[374361467,1753279839700,-460.0,0.00019178,2]
[374361470,1753279839709,-460.0,0.00019178,2]
[374361473,1753279839718,-460.0,0.00019178,2]
[374361476,1753279839728,-460.0,0.00019178,2]
[374361479,1753279839737,-460.0,0.00019178,2]
[374361481,1753279839746,-500.0,0.00019178,2]
[374361485,1753279839756,-500.0,0.00019178,2]
[374361488,1753279839765,-500.0,0.00019178,2]
[374361491,1753279839774,-500.0,0.00019178,2]
[374361492,1753279839784,-500.0,0.00019178,2]
[374361495,1753279839793,-500.0,0.00019178,2]
[374361500,1753279839802,-500.0,0.00019178,2]
[374361502,1753279839812,-500.0,0.00019178,2]
[374361506,1753279839822,-460.0,0.00019178,2]
[374361509,1753279839831,-460.0,0.00019178,2]
[374361512,1753279839840,-460.0,0.00019178,2]
[374361514,1753279839850,-460.0,0.00019178,2]
[374361518,1753279839859,-460.0,0.00019178,2]
[374361521,1753279839868,-460.0,0.00019178,2]
[374361524,1753279839877,-460.0,0.00019178,2]
[374361527,1753279839887,-460.0,0.00019178,2]
[374361529,1753279839896,-460.0,0.00019178,2]
[374361532,1753279839907,-460.0,0.00019178,2]
[374361535,1753279839916,-460.0,0.00019178,2]
[374361538,1753279839929,-460.0,0.00019178,2]
[374361541,1753279839938,-460.0,0.00019178,2]
[374361544,1753279839947,-364.27130797,0.00019178,2]
[374361547,1753279839957,-460.0,0.00019178,2]
[374361550,1753279839966,-460.0,0.00019178,2]
[374361553,1753279839987,-460.0,0.00019178,2]
[374361556,1753279839997,-460.0,0.00019178,2]
[374361559,1753279840007,-460.0,0.00019178,2]
[374361562,1753279840016,-460.0,0.00019178,2]
[374361565,1753279840026,-460.0,0.00019178,2]
[374361568,1753279840035,-460.0,0.00019178,2]
[374361570,1753279840044,-460.0,0.00019178,2]
[374361572,1753279840054,-460.0,0.00019178,2]
[374361574,1753279840063,-460.0,0.00019178,2]
[374361577,1753279840073,-460.0,0.00019178,2]
[374361580,1753279840083,-460.0,0.00019178,2]
[374361584,1753279840093,-460.0,0.00019178,2]
[374361587,1753279840102,-460.0,0.00019178,2]
[374361591,1753279840112,-460.0,0.00019178,2]
[374361595,1753279840121,-460.0,0.00019178,2]
[374361599,1753279840131,-460.0,0.00019178,2]
[374361603,1753279840141,-460.0,0.00019178,2]
[374361606,1753279840151,-460.0,0.00019178,2]
[374361609,1753279840161,-460.0,0.00019178,2]
[374361612,1753279840170,-460.0,0.00019178,2]
[374361616,1753279840182,-460.0,0.00019178,2]
[374361618,1753279840191,-460.0,0.00019178,2]
[374361622,1753279840201,-460.0,0.00019178,2]
[374361625,1753279840210,-460.0,0.00019178,2]
[374361627,1753279840220,-460.0,0.00019178,2]
[374361629,1753279840230,-460.0,0.00019178,2]
[374361630,1753279840240,-460.0,0.00019178,2]
[374361633,1753279840250,-460.79978135,0.00019178,2]
[374361635,1753279840259,-460.0,0.00019178,2]
[374361637,1753279840269,-460.0,0.00019178,2]
[374361639,1753279840280,-460.0,0.00019178,2]
[374361641,1753279840289,-460.0,0.00019178,2]
[374361643,1753279840299,-460.0,0.00019178,2]
[374361645,1753279840308,-460.0,0.00019178,2]
[374361646,1753279840317,-460.0,0.00019178,2]
[374361648,1753279840327,-460.0,0.00019178,2]
[374361650,1753279840337,-460.0,0.00019178,2]
[374361653,1753279840347,-460.0,0.00019178,2]
[374361654,1753279840356,-460.0,0.00019178,2]
[374361656,1753279840365,-460.0,0.00019178,2]
[374361659,1753279840375,-4461.85,0.00019178,2]
[374361660,1753279840384,-460.0,0.00019178,2]
[374361662,1753279840393,-460.0,0.00019178,2]
[374361665,1753279840403,-460.0,0.00019178,2]
[374361666,1753279840412,-460.0,0.00019178,2]
[374361668,1753279840423,-460.0,0.00019178,2]
[374361671,1753279840438,-460.0,0.00019178,2]
[374361672,1753279840448,-460.0,0.00019178,2]
[374361675,1753279840457,-460.0,0.00019178,2]
[374361677,1753279840468,-591.18,0.00019178,2]
[374361679,1753279840477,-460.0,0.00019178,2]
[374361681,1753279840486,-460.0,0.00019178,2]
[374361683,1753279840495,-460.0,0.00019178,2]
[374361685,1753279840505,-460.0,0.00019178,2]
[374361686,1753279840514,-299.7007997,0.00019178,2]
[374361688,1753279840523,-460.0,0.00019178,2]
[374361690,1753279840532,-460.0,0.00019178,2]
[374361692,1753279840541,-460.0,0.00019178,2]
[374361694,1753279840551,-240.14415653,0.00019178,2]
[374361697,1753279840560,-776.97,0.00019178,2]
[374361699,1753279840570,-460.0,0.00019178,2]
[374361701,1753279840579,-460.0,0.00019178,2]
[374361703,1753279840588,-460.0,0.00019178,2]
[374361704,1753279840598,-460.0,0.00019178,2]
[374361707,1753279840607,-460.0,0.00019178,2]
[374361709,1753279840618,-460.0,0.00019178,2]
[374361711,1753279840627,-460.0,0.00019178,2]
[374361713,1753279840637,-460.0,0.00019178,2]
[374361715,1753279840646,-460.0,0.00019178,2]
[374361717,1753279840657,-460.0,0.00019178,2]
[374361719,1753279840666,-460.0,0.00019178,2]
[374361720,1753279840675,-460.0,0.00019178,2]
[374361723,1753279840689,-460.0,0.00019178,2]
[374361725,1753279840699,-460.0,0.00019178,2]
[374361727,1753279840708,-460.0,0.00019178,2]
[374361729,1753279840718,-460.0,0.00019178,2]
[374361731,1753279840727,-460.0,0.00019178,2]
[374361733,1753279840736,-460.0,0.00019178,2]
[374361735,1753279840746,-460.0,0.00019178,2]
[374361737,1753279840755,-460.0,0.00019178,2]
[374361739,1753279840765,-460.0,0.00019178,2]
[374361741,1753279840774,-460.0,0.00019178,2]
[374361743,1753279840784,-500.0,0.00019178,2]
[374361745,1753279840793,-500.0,0.00019178,2]
[374361747,1753279840802,-500.0,0.00019178,2]
[374361749,1753279840811,-385.77,0.00019178,2]
[374361751,1753279840820,-460.0,0.00019178,2]
[374361753,1753279840829,-460.0,0.00019178,2]
[374361755,1753279840838,-460.0,0.00019178,2]
[374361757,1753279840847,-943.52,0.00019178,2]
[374361759,1753279840857,-460.0,0.00019178,2]
[374361761,1753279840867,-460.0,0.00019178,2]
[374361763,1753279840876,-460.0,0.00019178,2]
[374361765,1753279840886,-460.0,0.00019178,2]
[374361767,1753279840895,-460.0,0.00019178,2]
[374361769,1753279840904,-460.0,0.00019178,2]
[374361771,1753279840914,-460.0,0.00019178,2]
[374361773,1753279840923,-460.0,0.00019178,2]
[374361775,1753279840934,-460.0,0.00019178,2]
[374361777,1753279840943,-460.0,0.00019178,2]
[374361779,1753279840952,-460.0,0.00019178,2]
[374361781,1753279840961,-460.0,0.00019178,2]
[374361783,1753279840971,-460.0,0.00019178,2]
[374361785,1753279840980,-460.0,0.00019178,2]
[374361787,1753279840989,-460.0,0.00019178,2]
[374361789,1753279840999,-460.0,0.00019178,2]
[374361791,1753279841008,-460.0,0.00019178,2]
[374361793,1753279841018,-462.40941904,0.00019178,2]
[374361795,1753279841027,-460.0,0.00019178,2]
[374361797,1753279841035,-153.73076384,0.00019178,2]
[374361799,1753279841045,-460.0,0.00019178,2]
[374361801,1753279841054,-460.0,0.00019178,2]
[374361803,1753279841065,-460.0,0.00019178,2]
[374361805,1753279841074,-1021.86,0.00019178,2]
[374361807,1753279841083,-460.0,0.00019178,2]
[374361809,1753279841093,-460.0,0.00019178,2]
[374361811,1753279841102,-460.0,0.00019178,2]
[374361813,1753279841112,-460.0,0.00019178,2]
[374361815,1753279841122,-460.0,0.00019178,2]
[374361817,1753279841131,-460.0,0.00019178,2]
[374361819,1753279841140,-460.0,0.00019178,2]
[374361821,1753279841150,-460.0,0.00019178,2]
[374361823,1753279841159,-498.97386836,0.00019178,2]
[374361825,1753279841168,-460.0,0.00019178,2]
[374361827,1753279841179,-460.0,0.00019178,2]
[374361829,1753279841188,-662.95,0.00019178,2]
[374361831,1753279841198,-460.0,0.00019178,2]
[374361833,1753279841207,-644.9,0.00019178,2]
[374361835,1753279841217,-180.498069,0.00019178,2]
[374361837,1753279841226,-492.9,0.00019452,2]
[374361839,1753279841236,-461.51009337,0.00019452,2]
[374361841,1753279841245,-460.0,0.00019452,2]
[374361843,1753279841254,-460.0,0.00019452,2]
[374361845,1753279841263,-460.0,0.00019452,2]
[374361847,1753279841272,-460.0,0.00019452,2]
[374361849,1753279841282,-465.07522076,0.00019452,2]
[374361851,1753279841291,-774.0,0.00019452,2]
[374361853,1753279841301,-460.0,0.00019452,2]
[374361855,1753279841310,-460.0,0.00019452,2]
[374361857,1753279841319,-460.0,0.00019452,2]
[374361859,1753279841329,-565.21579009,0.00019452,2]
[374361861,1753279841338,-460.0,0.00019452,2]
[374361863,1753279841347,-460.0,0.00019452,2]
[374361865,1753279841356,-460.0,0.00019452,2]
[374361867,1753279841365,-460.0,0.00019452,2]
[374361869,1753279841374,-460.0,0.00019452,2]
[374361871,1753279841384,-460.0,0.00019452,2]
[374361873,1753279841393,-460.0,0.00019452,2]
[374361875,1753279841402,-460.0,0.00019452,2]
[374361877,1753279841411,-460.0,0.00019452,2]
[374361879,1753279841425,-460.0,0.00019452,2]
[374361881,1753279841436,-460.0,0.00019452,2]
[374361883,1753279841445,-460.0,0.00019452,2]
[374361885,1753279841455,-189.80449525,0.00019452,2]
[374361887,1753279841464,-460.0,0.00019452,2]
[374361889,1753279841474,-460.0,0.00019452,2]
[374361891,1753279841483,-460.0,0.00019452,2]
[374361893,1753279841493,-460.0,0.00019452,2]
[374361895,1753279841503,-460.0,0.00019452,2]
[374361897,1753279841512,-460.0,0.00019452,2]
[374361899,1753279841521,-460.0,0.00019452,2]
[374361901,1753279841530,-460.0,0.00019452,2]
[374361903,1753279841540,-460.0,0.00019452,2]
[374361905,1753279841549,-460.0,0.00019452,2]
[374361907,1753279841559,-460.0,0.00019452,2]
[374361909,1753279841568,-460.0,0.00019452,2]
[374361911,1753279841578,-460.0,0.00019452,2]
[374361914,1753279841587,-460.0,0.00019452,2]
[374361915,1753279841596,-460.0,0.00019452,2]
[374361917,1753279841606,-460.0,0.00019452,2]
[374361919,1753279841615,-460.0,0.00019452,2]
[374361922,1753279841625,-460.0,0.00019452,2]
[374361924,1753279841636,-497.43689925,0.00019452,2]
[374361926,1753279841646,-460.0,0.00019452,2]
[374361928,1753279841656,-460.0,0.00019452,2]
[374361930,1753279841665,-460.0,0.00019452,2]
[374361932,1753279841675,-460.0,0.00019452,2]
[374361934,1753279841688,-460.0,0.00019452,2]
[374361936,1753279841697,-460.0,0.00019452,2]
[374361938,1753279841706,-858.87399471,0.00019452,2]
[374361940,1753279841716,-460.0,0.00019452,2]
[374361942,1753279841725,-448.49853543,0.00019452,2]
[374361944,1753279841735,-469.08121383,0.00019452,2]
[374361946,1753279841745,-460.0,0.00019452,2]
[374361948,1753279841754,-460.0,0.00019452,2]
[374361950,1753279841763,-460.0,0.00019452,2]
[374361952,1753279841772,-460.0,0.00019452,2]
[374361954,1753279841781,-460.0,0.00019452,2]
[374361956,1753279841791,-460.0,0.00019452,2]
[374361958,1753279841800,-460.0,0.00019452,2]
[374361960,1753279841809,-460.0,0.00019452,2]
[374361962,1753279841818,-460.0,0.00019452,2]